bitfinex/quotes_BTCUSD_20221001
["timestamp","ask_amount","ask_price","bid_price","bid_amount"]
[1664617878770,0.05959901,19344.0,19343.0,10.6422025]
[1664617879659,0.13859901,19344.0,19343.0,10.6422025]
[1664617880529,0.26783801,19344.0,19343.0,10.6422025]
[1664617881188,0.18883801,19344.0,19343.0,10.6422025]
[1664617881630,0.26783801,19344.0,19343.0,10.6422025]
[1664617882389,0.26783801,19344.0,19343.0,10.2643512]
[1664617882615,0.52631601,19344.0,19343.0,10.2643512]
[1664617882850,0.44731601,19344.0,19343.0,10.2643512]
[1664617883521,0.52631601,19344.0,19343.0,10.2643512]
[1664617884896,0.44731601,19344.0,19343.0,10.2643512]
[1664617885015,0.45066447,19344.0,19343.0,10.2643512]
[1664617885679,0.52966447,19344.0,19343.0,10.2643512]
[1664617886815,0.45066447,19344.0,19343.0,10.2643512]
[1664617887727,0.52966447,19344.0,19343.0,10.2643512]
[1664617888865,0.45066447,19344.0,19343.0,10.2643512]
[1664617889519,0.52966447,19344.0,19343.0,10.2643512]
[1664617890829,0.45066447,19344.0,19343.0,10.2643512]
[1664617891447,0.45066447,19344.0,19343.0,10.6422025]
[1664617891682,0.52966447,19344.0,19343.0,10.76039525]
[1664617891914,0.52966447,19344.0,19343.0,11.11870125]
[1664617892407,0.52966447,19344.0,19343.0,10.2643512]
[1664617892863,0.45066447,19344.0,19343.0,10.2643512]
[1664617893536,0.52966447,19344.0,19343.0,10.2643512]
[1664617894898,0.45066447,19344.0,19343.0,10.2643512]
[1664617895602,0.52966447,19344.0,19343.0,10.2643512]
[1664617896897,0.45066447,19344.0,19343.0,10.2643512]
[1664617897793,0.52966447,19344.0,19343.0,10.2643512]
[1664617898620,0.52966447,19344.0,19343.0,10.6226572]
[1664617898801,0.45066447,19344.0,19343.0,10.2643512]
[1664617899645,0.52966447,19344.0,19343.0,10.2643512]
[1664617900255,0.27118647,19344.0,19343.0,10.76039525]
[1664617900475,0.27118647,19344.0,19343.0,11.11870125]
[1664617900688,0.27118647,19344.0,19343.0,10.76039525]
[1664617901154,0.19218647,19344.0,19343.0,10.76039525]
[1664617901694,0.27118647,19344.0,19343.0,10.76039525]
[1664617902569,0.27118647,19344.0,19343.0,10.2643512]
[1664617902791,0.14194747,19344.0,19343.0,10.2643512]
[1664617903011,0.06294747,19344.0,19343.0,10.2643512]
[1664617903700,0.14194747,19344.0,19343.0,10.2643512]
[1664617905050,0.06294747,19344.0,19343.0,10.2643512]
[1664617905710,0.14194747,19344.0,19343.0,10.2643512]
[1664617907242,0.06294747,19344.0,19343.0,10.2643512]
[1664617907654,0.14194747,19344.0,19343.0,10.2643512]
[1664617908261,0.14194747,19344.0,19343.0,10.6226572]
[1664617908450,0.14194747,19344.0,19343.0,10.2643512]
[1664617909120,0.06294747,19344.0,19343.0,10.2643512]
[1664617909846,0.14194747,19344.0,19343.0,10.2643512]
[1664617911249,0.27118647,19344.0,19343.0,10.2643512]
[1664617911404,0.19218647,19344.0,19343.0,10.2643512]
[1664617911688,0.27118647,19344.0,19343.0,10.2643512]
[1664617912954,0.19218647,19344.0,19343.0,10.2643512]
[1664617913511,0.19218647,19344.0,19343.0,10.76039525]
[1664617913718,0.27118647,19344.0,19343.0,10.76039525]
[1664617915085,0.06294747,19344.0,19343.0,10.76039525]
[1664617915728,0.14194747,19344.0,19343.0,10.76039525]
[1664617917096,0.06294747,19344.0,19343.0,10.76039525]
[1664617917773,0.14194747,19344.0,19343.0,10.76039525]
[1664617919145,0.06294747,19344.0,19343.0,10.76039525]
[1664617919697,0.14194747,19344.0,19343.0,10.76039525]
[1664617919911,0.14194747,19344.0,19343.0,10.2643512]
[1664617921005,0.06294747,19344.0,19343.0,10.2643512]
[1664617921558,0.19218647,19344.0,19343.0,10.2643512]
[1664617921783,0.27118647,19344.0,19343.0,10.2643512]
[1664617923060,0.19218647,19344.0,19343.0,10.2643512]
[1664617923738,0.27118647,19344.0,19343.0,10.2643512]
[1664617925089,0.19218647,19344.0,19343.0,10.2643512]
[1664617925773,0.27118647,19344.0,19343.0,10.2643512]
[1664617927085,0.19218647,19344.0,19343.0,10.2643512]
[1664617927842,0.27118647,19344.0,19343.0,10.2643512]
[1664617929002,0.19218647,19344.0,19343.0,10.2643512]
[1664617929872,0.27118647,19344.0,19343.0,10.2643512]
[1664617930941,0.19218647,19344.0,19343.0,10.2643512]
[1664617931802,0.27118647,19344.0,19343.0,10.76039525]
[1664617932459,0.14194747,19344.0,19343.0,10.76039525]
[1664617932674,0.14194747,19344.0,19343.0,11.11870125]
[1664617932895,0.14194747,19344.0,19343.0,10.76039525]
[1664617933130,0.06294747,19344.0,19343.0,10.2643512]
[1664617933774,0.14194747,19344.0,19343.0,10.2643512]
[1664617935188,0.06294747,19344.0,19343.0,10.2643512]
[1664617935745,0.14194747,19344.0,19343.0,10.2643512]
[1664617937082,0.06294747,19344.0,19343.0,10.2643512]
[1664617937776,0.14194747,19344.0,19343.0,10.2643512]
[1664617937983,0.27118647,19344.0,19343.0,10.2643512]
[1664617939066,0.19218647,19344.0,19343.0,10.2643512]
[1664617939727,0.27118647,19344.0,19343.0,10.2643512]
[1664617941267,0.19218647,19344.0,19343.0,10.2643512]
[1664617942005,0.27118647,19344.0,19343.0,10.2643512]
[1664617943118,0.19218647,19344.0,19343.0,10.2643512]
[1664617943807,0.27118647,19344.0,19343.0,10.2643512]
[1664617944470,0.14194747,19344.0,19343.0,10.6226572]
[1664617944684,0.14194747,19344.0,19343.0,10.2643512]
[1664617945080,0.06294747,19344.0,19343.0,10.2643512]
[1664617945744,0.14194747,19344.0,19343.0,10.2643512]
[1664617947269,0.06294747,19344.0,19343.0,10.2643512]
[1664617947948,0.14194747,19344.0,19343.0,10.2643512]
[1664617949295,0.06294747,19344.0,19343.0,10.2643512]
[1664617949862,0.14194747,19344.0,19343.0,10.2643512]
[1664617951179,0.06294747,19344.0,19343.0,10.2643512]
[1664617951929,0.14194747,19344.0,19343.0,10.2643512]
[1664617952816,0.14194747,19344.0,19343.0,10.6422025]
[1664617953045,0.06294747,19344.0,19343.0,10.6422025]
[1664617953239,0.06294747,19344.0,19343.0,11.0005085]
[1664617953454,0.06294747,19344.0,19343.0,10.6422025]
[1664617953916,0.14194747,19344.0,19343.0,10.6422025]
[1664617954579,0.14194747,19344.0,19343.0,10.2643512]
[1664617954811,0.14194747,19344.0,19343.0,10.6422025]
[1664617955034,0.14194747,19344.0,19343.0,10.2643512]
[1664617955261,0.06294747,19344.0,19343.0,10.6422025]
[1664617955951,0.06294747,19344.0,19343.0,10.2643512]
[1664617955952,0.14194747,19344.0,19343.0,10.2643512]
[1664617956180,0.14194747,19344.0,19343.0,10.6422025]
[1664617956614,0.14194747,19344.0,19343.0,10.2643512]
[1664617956830,0.14194747,19344.0,19343.0,10.6422025]
[1664617957582,0.06294747,19344.0,19343.0,10.6422025]
[1664617957985,0.14194747,19344.0,19343.0,10.6422025]
[1664617958983,0.14194747,19344.0,19343.0,10.2643512]
[1664617959192,0.06294747,19344.0,19343.0,10.2643512]
[1664617959418,0.06294747,19344.0,19343.0,11.13824655]
[1664617960052,0.14194747,19344.0,19343.0,11.13824655]
[1664617961304,0.06294747,19344.0,19343.0,10.2643512]
[1664617961425,0.06294747,19344.0,19343.0,10.6422025]
[1664617961646,0.06294747,19344.0,19343.0,10.2643512]
[1664617961952,0.14194747,19344.0,19343.0,10.2643512]
[1664617962469,0.14194747,19344.0,19343.0,10.6422025]
[1664617962717,0.14194747,19344.0,19343.0,10.2643512]
[1664617963146,0.06294747,19344.0,19343.0,10.2643512]
[1664617963582,0.06294747,19344.0,19343.0,11.13824655]
[1664617964032,0.14194747,19344.0,19343.0,11.13824655]
[1664617964470,0.14194747,19344.0,19343.0,10.76039525]
[1664617964706,0.14194747,19344.0,19343.0,11.13824655]
[1664617965203,0.06294747,19344.0,19343.0,10.2643512]
[1664617966113,0.14194747,19344.0,19343.0,10.2643512]
[1664617967080,0.06294747,19344.0,19343.0,10.2643512]
[1664617967625,0.06294747,19344.0,19343.0,10.6422025]
[1664617967840,0.06294747,19344.0,19343.0,10.76039525]
[1664617968051,0.14194747,19344.0,19343.0,10.76039525]
[1664617968513,0.14194747,19344.0,19343.0,11.13824655]
[1664617968746,0.14194747,19344.0,19343.0,10.76039525]
[1664617969299,0.06294747,19344.0,19343.0,11.13824655]
[1664617969960,0.14194747,19344.0,19343.0,11.13824655]
[1664617970391,0.14194747,19344.0,19343.0,11.49655255]
[1664617970602,0.14194747,19344.0,19343.0,11.13824655]
[1664617971076,0.14194747,19344.0,19343.0,10.76039525]
[1664617971342,0.06294747,19344.0,19343.0,11.13824655]
[1664617971711,0.06294747,19344.0,19343.0,11.49655255]
[1664617972161,0.14194747,19344.0,19343.0,11.13824655]
[1664617972426,0.14194747,19344.0,19343.0,11.49655255]
[1664617972696,0.14194747,19344.0,19343.0,11.13824655]
[1664617973310,0.06294747,19344.0,19343.0,11.13824655]
[1664617973580,0.06294747,19344.0,19343.0,11.49655255]
[1664617973770,0.06294747,19344.0,19343.0,11.13824655]
[1664617973982,0.14194747,19344.0,19343.0,11.13824655]
[1664617975071,0.14194747,19344.0,19343.0,11.49655255]
[1664617975448,0.06294747,19344.0,19343.0,11.49655255]
[1664617975665,0.06294747,19344.0,19343.0,11.13824655]
[1664617976089,0.14194747,19344.0,19343.0,11.13824655]
[1664617976521,0.14194747,19344.0,19343.0,11.49655255]
[1664617976982,0.14194747,19344.0,19343.0,11.13824655]
[1664617977202,0.06294747,19344.0,19343.0,11.13824655]
[1664617977995,0.14194747,19344.0,19343.0,11.13824655]
[1664617979369,0.06294747,19344.0,19343.0,11.13824655]
[1664617979986,0.14194747,19344.0,19343.0,11.13824655]
[1664617981199,0.06294747,19344.0,19343.0,11.13824655]
[1664617982194,0.14194747,19344.0,19343.0,11.13824655]
[1664617983126,0.14194747,19344.0,19343.0,11.13798806]
[1664617983348,0.06294747,19344.0,19343.0,10.64194401]
[1664617983831,0.06294747,19344.0,19343.0,10.26409271]
[1664617984048,0.14194747,19344.0,19343.0,10.26409271]
[1664617985471,0.06294747,19344.0,19343.0,10.26409271]
[1664617986134,0.14194747,19344.0,19343.0,10.26409271]
[1664617987383,0.06294747,19344.0,19343.0,10.26409271]
[1664617988056,0.14194747,19344.0,19343.0,10.26409271]
[1664617989515,0.06294747,19344.0,19343.0,11.13798806]
[1664617989735,0.06294747,19344.0,19343.0,11.49629406]
[1664617989950,0.14194747,19344.0,19343.0,11.49629406]
[1664617990173,0.14194747,19344.0,19343.0,11.13798806]
[1664617991276,0.06294747,19344.0,19343.0,11.13798806]
[1664617991965,0.14194747,19344.0,19343.0,11.13798806]
[1664617992185,0.001,19346.0,19345.0,1.45]
[1664617992404,0.001,19346.0,19345.0,2.38845263]
[1664617992578,0.001,19346.0,19345.0,2.1836133]
[1664617992828,0.001,19346.0,19345.0,1.8253073]
[1664617993069,0.001,19346.0,19345.0,0.42940001]
[1664617993298,0.001,19346.0,19345.0,0.97228516]
[1664617993702,0.001,19346.0,19345.0,0.61397916]
[1664617994142,0.001,19346.0,19345.0,1.02928516]
[1664617994578,0.001,19346.0,19345.0,1.03857971]
[1664617995451,0.001,19346.0,19345.0,0.98157971]
[1664617995841,0.001,19346.0,19345.0,0.93157971]
[1664617996060,0.001,19346.0,19345.0,0.98457971]
[1664617996917,0.001,19346.0,19345.0,1.18843001]
[1664617997342,0.001,19346.0,19345.0,1.13543001]
[1664617998013,0.001,19346.0,19345.0,1.18843001]
[1664617999367,0.001,19346.0,19345.0,0.85075086]
[1664617999801,0.001,19346.0,19345.0,0.86004558]
[1664618000017,0.001,19346.0,19345.0,0.91304558]
[1664618000514,0.0037164,19346.0,19345.0,0.91304558]
[1664618001389,0.0037164,19346.0,19345.0,0.86004558]
[1664618001612,0.0037164,19346.0,19345.0,1.08896531]
[1664618002587,0.0037164,19346.0,19345.0,1.14196531]
[1664618004154,0.0037164,19346.0,19345.0,1.19496531]
[1664618004501,0.0037164,19346.0,19345.0,1.65369675]
[1664618005147,0.001,19346.0,19345.0,1.65369675]
[1664618005373,0.001,19346.0,19345.0,1.60069675]
[1664618006175,0.001,19346.0,19345.0,1.65369675]
[1664618007279,0.001,19346.0,19345.0,1.60069675]
[1664618008000,0.001,19346.0,19345.0,1.65369675]
[1664618009374,0.001,19346.0,19345.0,1.60069675]
[1664618010270,0.001,19346.0,19345.0,1.65369675]
[1664618011278,0.001,19346.0,19345.0,1.60069675]
[1664618012249,0.001,19346.0,19345.0,1.65369675]
[1664618013247,0.001,19346.0,19345.0,1.60069675]
[1664618014101,0.001,19346.0,19345.0,1.65369675]
[1664618014573,0.001,19346.0,19345.0,3.98694652]
[1664618014744,0.001,19346.0,19345.0,1.65369675]
[1664618015030,0.001,19346.0,19345.0,1.29539075]
[1664618015241,0.001,19346.0,19345.0,1.65369675]
[1664618015457,0.001,19346.0,19345.0,1.60069675]
[1664618016258,0.001,19346.0,19345.0,1.65369675]
[1664618017501,0.001,19346.0,19345.0,1.60069675]
[1664618017937,0.001,19346.0,19345.0,1.3161949]
[1664618018147,0.001,19346.0,19345.0,1.3691949]
[1664618018667,0.001,19346.0,19345.0,1.0108889]
[1664618019349,0.001,19346.0,19345.0,1.3691949]
[1664618019729,0.001,19346.0,19345.0,1.3161949]
[1664618020029,0.125129,19348.0,19347.0,0.05]
[1664618020201,0.125129,19348.0,19346.0,0.05]
[1664618020202,0.129137,19347.0,19346.0,0.05]
[1664618020415,0.125129,19348.0,19346.0,0.05]
[1664618021041,0.125129,19348.0,19347.0,0.00409271]
[1664618021256,0.254341,19348.0,19347.0,0.00409271]
[1664618021649,0.383477,19348.0,19347.0,0.00409271]
[1664618022358,0.383477,19348.0,19347.0,0.05609271]
[1664618022951,1.0386547,19348.0,19347.0,0.05609271]
[1664618023440,0.68296515,19348.0,19347.0,0.00409271]
[1664618024343,0.68296515,19348.0,19347.0,0.05209271]
[1664618024789,1.06556059,19348.0,19347.0,0.05209271]
[1664618025020,1.58240959,19348.0,19347.0,0.05209271]
[1664618025239,1.94071559,19348.0,19347.0,0.05209271]
[1664618025485,1.94071559,19348.0,19347.0,0.00409271]
[1664618025907,1.58240959,19348.0,19347.0,0.00409271]
[1664618026197,1.94071559,19348.0,19347.0,0.00409271]
[1664618026431,1.94071559,19348.0,19347.0,0.04909271]
[1664618026661,1.58240959,19348.0,19347.0,0.40739871]
[1664618026885,1.58240959,19348.0,19347.0,0.04909271]
[1664618027551,1.94071559,19348.0,19347.0,0.00409271]
[1664618028093,1.94071559,19348.0,19347.0,0.05209271]
[1664618029383,1.94071559,19348.0,19347.0,0.00409271]
[1664618029849,1.93571559,19348.0,19347.0,0.00409271]
[1664618030275,1.89726789,19348.0,19347.0,0.04909271]
[1664618030494,1.02211289,19348.0,19347.0,0.04909271]
[1664618031080,1.38041889,19348.0,19347.0,0.04909271]
[1664618031535,1.38041889,19348.0,19347.0,0.00409271]
[1664618032222,1.38041889,19348.0,19347.0,0.04709271]
[1664618032440,1.02211289,19348.0,19347.0,0.04709271]
[1664618032868,1.38041889,19348.0,19347.0,0.04709271]
[1664618033425,1.38041889,19348.0,19347.0,0.00409271]
[1664618034375,1.02211289,19348.0,19347.0,0.04909271]
[1664618035019,1.61863278,19348.0,19347.0,0.04909271]
[1664618035634,1.61863278,19348.0,19347.0,0.00409271]
[1664618036313,1.26032678,19348.0,19347.0,0.04909271]
[1664618036536,1.61863278,19348.0,19347.0,0.04909271]
[1664618037125,1.41065578,19348.0,19347.0,0.04909271]
[1664618037363,1.02211289,19348.0,19347.0,0.04909271]
[1664618037553,1.38041889,19348.0,19347.0,0.00409271]
[1664618037776,1.02211289,19348.0,19347.0,0.00409271]
[1664618038161,1.38041889,19348.0,19347.0,0.04909271]
[1664618038473,1.02211289,19348.0,19347.0,0.04909271]
[1664618038687,1.38041889,19348.0,19347.0,0.04909271]
[1664618039832,1.38041889,19348.0,19347.0,0.00409271]
[1664618040298,1.38041889,19348.0,19347.0,0.05209271]
[1664618041519,1.38041889,19348.0,19347.0,0.00409271]
[1664618042439,1.38041889,19348.0,19347.0,0.05209271]
[1664618042671,1.17244189,19348.0,19347.0,0.05209271]
[1664618042865,1.02211289,19348.0,19347.0,0.05209271]
[1664618043433,1.38041889,19348.0,19347.0,0.05209271]
[1664618043647,1.02211289,19348.0,19347.0,0.00409271]
[1664618044303,1.38041889,19348.0,19347.0,0.00409271]
[1664618044522,1.02211289,19348.0,19347.0,0.05209271]
[1664618044739,1.38041889,19348.0,19347.0,0.05209271]
[1664618045640,1.02211289,19348.0,19347.0,0.00409271]
[1664618045847,1.38041889,19348.0,19347.0,0.00409271]
[1664618046172,1.02211289,19348.0,19347.0,0.00409271]
[1664618046297,1.38041889,19348.0,19347.0,0.05209271]
[1664618047921,1.38041889,19348.0,19347.0,0.00409271]
[1664618048343,1.89726789,19348.0,19347.0,0.05209271]
[1664618049524,2.18734832,19348.0,19347.0,0.00409271]
[1664618049758,3.94687462,19348.0,19347.0,0.00409271]
[1664618049989,3.89687462,19348.0,19347.0,0.00409271]
[1664618050230,3.89687462,19348.0,19347.0,0.04909271]
[1664618050438,3.94687462,19348.0,19347.0,0.04909271]
[1664618051119,3.94687462,19348.0,19347.0,0.04897583]
[1664618051584,3.94687462,19348.0,19347.0,0.00397583]
[1664618051806,3.88610676,19348.0,19347.0,0.00397583]
[1664618052254,3.88610676,19348.0,19347.0,0.04797583]
[1664618053612,3.88610676,19348.0,19347.0,0.00397583]
[1664618054335,3.88610676,19348.0,19347.0,0.05297583]
[1664618055667,3.83610676,19348.0,19347.0,0.00397583]
[1664618056319,3.83610676,19348.0,19347.0,0.05297583]
[1664618057486,2.52131308,19348.0,19347.0,0.05297583]
[1664618057707,2.89565432,19348.0,19347.0,0.00397583]
[1664618058312,2.89565432,19348.0,19347.0,0.05297583]
[1664618059629,2.89565432,19348.0,19347.0,0.00397583]
[1664618059984,2.84565432,19348.0,19347.0,0.00397583]
[1664618060455,2.84565432,19348.0,19347.0,0.05297583]
[1664618060707,2.47131308,19348.0,19347.0,0.05297583]
[1664618061652,2.84565432,19348.0,19347.0,0.00397583]
[1664618062362,2.84565432,19348.0,19347.0,0.04797583]
[1664618062591,2.89565432,19348.0,19347.0,0.04797583]
[1664618063199,3.59948682,19348.0,19347.0,0.04797583]
[1664618063630,3.59948682,19348.0,19347.0,0.00397583]
[1664618063848,1.06475495,19348.0,19347.0,0.20881516]
[1664618064065,0.70644895,19348.0,19347.0,0.73662307]
[1664618064674,0.70644895,19348.0,19347.0,0.42931707]
[1664618065108,0.70644895,19348.0,19347.0,0.5181157]
[1664618066008,0.70644895,19348.0,19347.0,0.4671157]
[1664618066444,0.70644895,19348.0,19347.0,0.5471157]
[1664618067736,0.70644895,19348.0,19347.0,0.4671157]
[1664618067936,0.70644895,19348.0,19347.0,0.5963347]
[1664618068666,0.70644895,19348.0,19347.0,0.6763347]
[1664618069704,0.70644895,19348.0,19347.0,0.5963347]
[1664618070596,0.70644895,19348.0,19347.0,0.6763347]
[1664618071534,0.70644895,19348.0,19347.0,0.9347727]
[1664618071758,0.70644895,19348.0,19347.0,1.2130787]
[1664618071971,0.70644895,19348.0,19347.0,0.8547727]
[1664618072356,0.70644895,19348.0,19347.0,0.9347727]
[1664618073833,0.70644895,19348.0,19347.0,0.8547727]
[1664618074499,0.70644895,19348.0,19347.0,0.9347727]
[1664618075715,0.70644895,19348.0,19347.0,0.8547727]
[1664618075948,0.70644895,19348.0,19347.0,0.5963347]
[1664618076617,0.70644895,19348.0,19347.0,0.58753607]
[1664618077763,0.70644895,19348.0,19347.0,0.50753607]
[1664618077984,0.70644895,19348.0,19347.0,0.37831707]
[1664618078659,0.70644895,19348.0,19347.0,0.45831707]
[1664618079604,0.70644895,19348.0,19347.0,0.08397583]
[1664618079920,0.70644895,19348.0,19347.0,0.00397583]
[1664618080612,0.70644895,19348.0,19347.0,0.08397583]
[1664618081731,0.70644895,19348.0,19347.0,0.00397583]
[1664618082400,0.70644895,19348.0,19347.0,0.08397583]
[1664618083768,0.70644895,19348.0,19347.0,0.00397583]
[1664618084433,0.70644895,19348.0,19347.0,0.08397583]
[1664618085108,0.70644895,19348.0,19347.0,0.45831707]
[1664618085316,0.70644895,19348.0,19347.0,0.08397583]
[1664618085803,0.70644895,19348.0,19347.0,0.00397583]
[1664618086601,0.70644895,19348.0,19347.0,0.08397583]
[1664618087720,0.00261645,19348.0,19347.0,0.00397583]
[1664618088528,0.00261645,19348.0,19347.0,0.08397583]
[1664618089862,0.00261645,19348.0,19347.0,0.00397583]
[1664618090568,0.00261645,19348.0,19347.0,0.08397583]
[1664618091930,0.9665599,19349.0,19348.0,0.05]
[1664618092173,0.9665599,19349.0,19347.0,0.00397583]
[1664618092394,0.96647703,19349.0,19347.0,0.00397583]
[1664618092657,0.96647703,19349.0,19348.0,0.079]
[1664618093291,1.32478303,19349.0,19348.0,0.079]
[1664618093416,1.32478303,19349.0,19348.0,0.08297583]
[1664618093417,0.96647703,19349.0,19348.0,0.08297583]
[1664618093645,0.96647703,19349.0,19348.0,0.00397583]
[1664618094090,1.32478303,19349.0,19348.0,0.00397583]
[1664618094315,0.96647703,19349.0,19348.0,0.00397583]
[1664618094528,0.96647703,19349.0,19348.0,0.08297583]
[1664618095831,0.96647703,19349.0,19348.0,0.00397583]
[1664618096341,1.32478303,19349.0,19348.0,0.00397583]
[1664618096546,0.96647703,19349.0,19348.0,0.08297583]
[1664618097322,1.32478303,19349.0,19348.0,0.08297583]
[1664618097630,0.96647703,19349.0,19348.0,0.08297583]
[1664618097846,0.96647703,19349.0,19348.0,0.00397583]
[1664618098506,1.22488803,19349.0,19348.0,0.00397583]
[1664618098714,1.22488803,19349.0,19348.0,0.08297583]
[1664618099827,1.22488803,19349.0,19348.0,0.00397583]
[1664618100313,0.96647703,19349.0,19348.0,0.00397583]
[1664618100523,1.32478303,19349.0,19348.0,0.08297583]
[1664618100737,0.96647703,19349.0,19348.0,0.08297583]
[1664618101889,0.96647703,19349.0,19348.0,0.00397583]
[1664618102079,0.96647703,19349.0,19348.0,0.36228183]
[1664618102303,0.96647703,19349.0,19348.0,0.00397583]
[1664618102515,0.96647703,19349.0,19348.0,0.44128183]
[1664618102774,0.96647703,19349.0,19348.0,0.08297583]
[1664618102975,1.32478303,19349.0,19348.0,0.08297583]
[1664618103187,0.96647703,19349.0,19348.0,0.08297583]
[1664618103554,0.96647703,19349.0,19348.0,0.44128183]
[1664618103763,0.96647703,19349.0,19348.0,0.00397583]
[1664618104635,0.96647703,19349.0,19348.0,0.08297583]
[1664618105638,1.32478303,19349.0,19348.0,0.08297583]
[1664618105837,1.32478303,19349.0,19348.0,0.00397583]
[1664618106056,0.96647703,19349.0,19348.0,0.00397583]
[1664618106496,1.32478303,19349.0,19348.0,0.00397583]
[1664618106731,0.96647703,19349.0,19348.0,0.08297583]
[1664618106951,1.32478303,19349.0,19348.0,0.08297583]
[1664618107143,0.96647703,19349.0,19348.0,0.08297583]
[1664618108002,1.32478303,19349.0,19348.0,0.08297583]
[1664618108234,0.96647703,19349.0,19348.0,0.08297583]
[1664618108437,0.96647703,19349.0,19348.0,0.00397583]
[1664618108758,1.32478303,19349.0,19348.0,0.08297583]
[1664618109000,1.22488803,19349.0,19348.0,0.08297583]
[1664618109762,1.22488803,19349.0,19348.0,0.00397583]
[1664618110823,1.22488803,19349.0,19348.0,0.08297583]
[1664618111042,1.58319403,19349.0,19348.0,0.08297583]
[1664618111422,1.22488803,19349.0,19348.0,0.08297583]
[1664618111892,1.58319403,19349.0,19348.0,0.00397583]
[1664618112290,1.22488803,19349.0,19348.0,0.00390749]
[1664618112492,1.22488803,19349.0,19348.0,0.08290749]
[1664618112703,1.58319403,19349.0,19348.0,0.08290749]
[1664618112946,1.22488803,19349.0,19348.0,0.08290749]
[1664618113884,1.22488803,19349.0,19348.0,0.00390749]
[1664618114511,1.22488803,19349.0,19348.0,0.08290749]
[1664618114731,1.19557803,19349.0,19348.0,0.08290749]
[1664618114946,0.83727203,19349.0,19348.0,0.08290749]
[1664618115812,0.83727203,19349.0,19348.0,0.00390749]
[1664618116041,1.19557803,19349.0,19348.0,0.00390749]
[1664618116484,0.98760103,19349.0,19348.0,0.08290749]
[1664618116704,0.83727203,19349.0,19348.0,0.08290749]
[1664618116946,0.96647703,19349.0,19348.0,0.08290749]
[1664618117156,1.32478303,19349.0,19348.0,0.08290749]
[1664618117599,0.96647703,19349.0,19348.0,0.08290749]
[1664618117870,0.96647703,19349.0,19348.0,0.00390749]
[1664618118760,0.96647703,19349.0,19348.0,0.08290749]
[1664618119012,1.22488803,19349.0,19348.0,0.08290749]
[1664618119313,1.58319403,19349.0,19348.0,0.08290749]
[1664618119761,1.22488803,19349.0,19348.0,0.08290749]
[1664618119970,1.22488803,19349.0,19348.0,0.00390749]
[1664618120634,1.58319403,19349.0,19348.0,0.08290749]
[1664618121096,1.22488803,19349.0,19348.0,0.08290749]
[1664618121724,1.58319403,19349.0,19348.0,0.08290749]
[1664618121983,1.88319403,19349.0,19348.0,0.00390749]
[1664618122412,1.22488803,19349.0,19348.0,0.00390749]
[1664618122605,1.22488803,19349.0,19348.0,0.08290749]
[1664618122758,1.58319403,19349.0,19348.0,0.08290749]
[1664618123180,1.22488803,19349.0,19348.0,0.08290749]
[1664618123891,1.58319403,19349.0,19348.0,0.00390749]
[1664618124106,1.22488803,19349.0,19348.0,0.00390749]
[1664618124789,1.22488803,19349.0,19348.0,0.08290749]
[1664618125899,1.22488803,19349.0,19348.0,0.00390749]
[1664618126117,1.58319403,19349.0,19348.0,0.00390749]
[1664618126676,1.58319403,19349.0,19348.0,0.08290749]
[1664618126921,1.22488803,19349.0,19348.0,0.08290749]
[1664618127360,1.58319403,19349.0,19348.0,0.08290749]
[1664618127578,1.22488803,19349.0,19348.0,0.08290749]
[1664618128022,1.22488803,19349.0,19348.0,0.00390749]
[1664618128626,1.58319403,19349.0,19348.0,0.08290749]
[1664618129187,1.22488803,19349.0,19348.0,0.08290749]
[1664618129975,1.58319403,19349.0,19348.0,0.00390749]
[1664618130198,1.22488803,19349.0,19348.0,0.00390749]
[1664618130695,1.22488803,19349.0,19348.0,0.08290749]
[1664618131372,1.58319403,19349.0,19348.0,0.08290749]
[1664618131878,1.37521703,19349.0,19348.0,0.08290749]
[1664618132086,1.22488803,19349.0,19348.0,0.00390749]
[1664618132777,1.22488803,19349.0,19348.0,0.08290749]
[1664618133669,1.58319403,19349.0,19348.0,0.08290749]
[1664618134032,1.22488803,19349.0,19348.0,0.36221349]
[1664618134244,1.22488803,19349.0,19348.0,0.00380943]
[1664618134481,1.74171003,19349.0,19348.0,0.00380943]
[1664618134672,1.74171003,19349.0,19348.0,0.08280943]
[1664618134882,1.74171003,19349.0,19348.0,0.44111543]
[1664618135102,1.74171003,19349.0,19348.0,0.08280943]
[1664618135594,1.22488803,19349.0,19348.0,0.44111543]
[1664618135829,1.22488803,19349.0,19348.0,0.08280943]
[1664618135994,1.22488803,19349.0,19348.0,0.53230543]
[1664618136208,1.22488803,19349.0,19348.0,0.17399943]
[1664618136612,1.22488803,19349.0,19348.0,0.25299943]
[1664618136824,1.22488803,19349.0,19348.0,0.61130543]
[1664618137034,1.22488803,19349.0,19348.0,0.25299943]
[1664618137267,1.22488803,19349.0,19348.0,0.61130543]
[1664618137482,1.22488803,19349.0,19348.0,0.08280943]
[1664618137692,1.58319403,19349.0,19348.0,0.08280943]
[1664618137904,0.96647703,19349.0,19348.0,0.08280943]
[1664618138115,0.83727203,19349.0,19348.0,0.44111543]
[1664618138361,0.83727203,19349.0,19348.0,0.00380943]
[1664618138805,0.83727203,19349.0,19348.0,0.08280943]
[1664618139822,0.83727203,19349.0,19348.0,0.00380943]
[1664618140031,1.19557803,19349.0,19348.0,0.00380943]
[1664618140332,0.83727203,19349.0,19348.0,0.00380943]
[1664618140705,0.83727203,19349.0,19348.0,0.08280943]
[1664618142034,0.83727203,19349.0,19348.0,0.00380943]
[1664618142942,0.83727203,19349.0,19348.0,0.08280943]
[1664618143942,0.83727203,19349.0,19348.0,0.00380943]
[1664618144701,0.83727203,19349.0,19348.0,0.08280943]
[1664618145352,0.83727203,19349.0,19348.0,0.44111543]
[1664618145779,0.83727203,19349.0,19348.0,0.08280943]
[1664618146026,0.83727203,19349.0,19348.0,0.00380943]
[1664618146869,0.83727203,19349.0,19348.0,0.08280943]
[1664618147960,0.83727203,19349.0,19348.0,0.00380943]
[1664618148793,0.83727203,19349.0,19348.0,0.08280943]
[1664618149524,0.70815003,19349.0,19348.0,0.86024837]
[1664618149723,0.58149445,19349.0,19348.0,1.5837205]
[1664618150166,0.58149445,19349.0,19348.0,1.5047205]
[1664618150301,0.58149445,19349.0,19348.0,2.4166055]
[1664618150729,0.58149445,19349.0,19348.0,2.4886055]
[1664618151413,0.58149445,19349.0,19348.0,1.9717565]
[1664618152081,0.58149445,19349.0,19348.0,1.5414505]
[1664618152297,0.58149445,19349.0,19348.0,1.8997565]
[1664618152972,0.58149445,19349.0,19348.0,1.9727565]
[1664618153411,0.58149445,19349.0,19348.0,2.4896055]
[1664618154077,0.58149445,19349.0,19348.0,2.4166055]
[1664618154294,0.58149445,19349.0,19348.0,2.0582995]
[1664618154514,0.58149445,19349.0,19348.0,2.4166055]
[1664618154836,0.58149445,19349.0,19348.0,2.4896055]
[1664618155210,0.58149445,19349.0,19348.0,2.1312995]
[1664618155391,0.58149445,19349.0,19348.0,2.4896055]
[1664618156109,0.58149445,19349.0,19348.0,2.4166055]
[1664618156840,0.58149445,19349.0,19348.0,2.4796055]